Workbook

Sheet НАЧАЛО
B1: ОБ ЭТОМ ШАБЛОНЕ
B2: Следите за первоначальными капиталовложениями в веб-сайт, экономическим эффектом и затратами на него с помощью средства составления бюджета веб-сайта.
B3: Введите название компании и дату.
B4: Укажите сведения в таблицах для расчета итоговых сумм и показателей оценки.
B5: Примечание
B6: В столбце A листа СРЕДСТВО СОСТАВЛЕНИЯ БЮДЖЕТА содержатся дополнительные инструкции. Их текст намерено скрыт. Чтобы удалить этот текст, выделите столбец A и нажмите клавишу DELETE. Чтобы отобразить текст, выделите столбец A и измените цвет шрифта.
B7: Чтобы получить дополнительные сведения о таблице на листе, щелкните в ней ячейку, нажмите клавиши SHIFT+F10 и выберите пункт «Таблица», а затем — «Замещающий текст».

Sheet СРЕДСТВО СОСТАВЛЕНИЯ БЮДЖЕТА
A1: Создайте на этом листе бюджет веб-сайта. В ячейках этого столбца содержатся полезные инструкции о том, как использовать этот лист. Нажмите клавишу СТРЕЛКА ВНИЗ, чтобы начать.
A2: Введите название компании в ячейке справа. | B2: Название компании
A3: Ячейка справа содержит название листа. | B3: Средство составления бюджета-сайта
A4: Введите дату в ячейке справа. | B4: Дата
A5: Совет представлен в ячейке справа. | B5: В серых ячейках представлены результаты расчетов, которые не следует изменять.
A6: Введите сведения в таблице «Коэффициент», начиная с ячейки справа. Дальнейшие инструкции указаны в ячейке A10. | B6: Данные компании | C6: Коэффициент
B7: Требуемая норма доходности | C7: 10%
B8: Ставка налога | C8: 30%
A10: Введите сведения в таблице «Первоначальные капиталовложения», начиная с ячейки справа. Дальнейшие инструкции указаны в ячейке A16. | B10: Первоначальные капиталовложения в веб-сайт | C10: ГОД | D10: 1 | E10: 2 | F10: 3
B11: Оборудование (например, серверы) | C11: 25,000.00 ₽
B12: Программное обеспечение (например, для онлайн-каталога товаров) | C12: 15,000.00 ₽
B13: Разработка (например, проектирование и разработка сайта сторонней компанией) | C13: 150,000.00 ₽
B14: Общие первоначальные капиталовложения | C14: =SUBTOTAL(109,ПервоначальныеКапиталовложения[ГОД]) -> 190,000.00 ₽
A16: Введите сведения в таблице «Экономический эффект», начиная с ячейки справа. Дальнейшие инструкции указаны в ячейке A24. | B16: Экономический эффект от веб-сайта | C16: ГОД | D16: 1 | E16: 2 | F16: 3
B17: Прямые продажи | D17: 15,000.00 ₽ | E17: 50,000.00 ₽ | F17: 75,000.00 ₽
B18: Увеличение продаж в результате повышения эффективности продавцов или рекламных кампаний | D18: 25,000.00 ₽ | E18: 25,000.00 ₽ | F18: 25,000.00 ₽
B19: Увеличение продаж в результате более активного участия партнеров | D19: 25,000.00 ₽ | E19: 25,000.00 ₽ | F19: 25,000.00 ₽
B20: Уменьшение командировочных расходов | D20: 25,000.00 ₽ | E20: 25,000.00 ₽ | F20: 25,000.00 ₽
B21: Уменьшение расходов на обслуживание клиентов | D21: 50,000.00 ₽ | E21: 50,000.00 ₽ | F21: 50,000.00 ₽
B22: Общий экономический эффект | D22: =SUBTOTAL(109,ЭкономическийЭффект[1]) -> 140,000.00 ₽ | E22: =SUBTOTAL(109,ЭкономическийЭффект[2]) -> 175,000.00 ₽ | F22: =SUBTOTAL(109,ЭкономическийЭффект[3]) -> 200,000.00 ₽
A24: Введите сведения в таблице «Затраты», начиная с ячейки справа. В ячейках с формулами значения рассчитываются автоматически. Дальнейшие инструкции указаны в ячейке A32. | B24: Затраты (кроме первоначальных капиталовложений) | C24: ГОД | D24: 1 | E24: 2 | F24: 3
B25: Себестоимость продаж | D25: 7,500.00 ₽ | E25: 25,000.00 ₽ | F25: 37,500.00 ₽
B26: Обслуживание | D26: 15,000.00 ₽ | E26: 15,000.00 ₽ | F26: 15,000.00 ₽
B27: Управление проектами, поддержка клиентов | D27: 35,000.00 ₽ | E27: 35,000.00 ₽ | F27: 35,000.00 ₽
B28: Реклама в Интернете, регистрация в поисковых системах | D28: 10,000.00 ₽ | E28: 10,000.00 ₽ | F28: 10,000.00 ₽
B29: Амортизация капиталовложений (расчеты для трехлетнего периода) | D29: =ПервоначальныеКапиталовложения[[#Totals],[ГОД]]/3 -> 63,333.33 ₽ | E29: =ПервоначальныеКапиталовложения[[#Totals],[ГОД]]/3 -> 63,333.33 ₽ | F29: =ПервоначальныеКапиталовложения[[#Totals],[ГОД]]/3 -> 63,333.33 ₽
B30: Общие затраты | D30: =SUBTOTAL(109,Затраты[1]) -> 130,833.33 ₽ | E30: =SUBTOTAL(109,Затраты[2]) -> 148,333.33 ₽ | F30: =SUBTOTAL(109,Затраты[3]) -> 160,833.33 ₽
A32: Значения автоматически рассчитываются в таблице «Итоги», начиная с ячейки справа. Дальнейшие инструкции указаны в ячейке A40. | B32: Итоги | C32: ГОД | D32: 1 | E32: 2 | F32: 3
B33: Экономический эффект (затраты) | D33: =ЭкономическийЭффект[[#Totals],[1]]-Затраты[[#Totals],[1]] -> 9,166.67 ₽ | E33: =ЭкономическийЭффект[[#Totals],[2]]-Затраты[[#Totals],[2]] -> 26,666.67 ₽ | F33: =ЭкономическийЭффект[[#Totals],[3]]-Затраты[[#Totals],[3]] -> 39,166.67 ₽
B34: Налог | D34: =D33*СтавкаНалога -> 2,750.00 ₽ | E34: =E33*СтавкаНалога -> 8,000.00 ₽ | F34: =F33*СтавкаНалога -> 11,750.00 ₽
B35: Сумма после вычета налогов | D35: =D33-D34 -> 6,416.67 ₽ | E35: 18,666.67 ₽ | F35: 27,416.67 ₽
B36: Восстановление амортизации | D36: =D29 -> 63,333.33 ₽ | E36: =E29 -> 63,333.33 ₽ | F36: =F29 -> 63,333.33 ₽
B37: Движение денежных средств | C37: =-ПервоначальныеКапиталовложения[[#Totals],[ГОД]] -> -190,000.00 ₽ | D37: =D35+D36 -> 69,750.00 ₽ | E37: 82,000.00 ₽ | F37: 90,750.00 ₽
B38: Накопленное движение денежных средств | C38: =C37 -> -190,000.00 ₽ | D38: =C38+D37 -> -120,250.00 ₽ | E38: -38,250.00 ₽ | F38: 52,500.00 ₽
A40: Показатели оценки автоматически рассчитываются в таблице «Показатели», начиная с ячейки справа. | B40: Показатели оценки | C40: Значения
B41: Чистая приведенная стоимость (ЧПС) | C41: =C37+(NPV(ТНД,D37:F37)) -> 9,359.50 ₽
B42: Внутренняя норма доходности (ВНД) | C42: =IRR(C37:F37) -> 12.66%
B43: Срок окупаемости (в годах) | C43: =IF(F38<=0,"Более 3 лет",IF(E38<=0,(F37-F38)/F37+2,IF(D38<=0,(E37-E38)/E37+1,IF(C38<=0,(D37-D38)/D37,"Н/Д")))) -> 2.42
